[Event "HUN-chT Youth-Children 2018"]
[Site "Zalakaros"]
[Date "2018.07.27"]
[Round "3"]
[White "Marosi, Levente"]
[Black "Vanczak, Tamas"]
[Result "1-0"]
[ECO "B78"]
[WhiteElo "2337"]
[BlackElo "2339"]
[Annotator "NA"]
[PlyCount "95"]
[EventDate "2018.07.26"]
[EventType "team-tourn"]
[EventCountry "HUN"]
[SourceTitle "playchess.com"]
[Source "ChessBase"]
[SourceQuality "1"]
[TimeControl "5400+30"]

1. e4 {[%emt 0:00:00]} c5 {[%emt 0:00:16]} 2. Nf3 {[%emt 0:00:00]} d6 {[%emt 0:00:33]} 3. d4 {[%emt 0:00:24]} cxd4 {[%emt 0:00:07]} 4. Nxd4 {[%emt 0:00:09]} Nf6 {[%emt 0:00:28]} 5. Nc3 {[%emt 0:00:18]} g6 {[%emt 0:00:36]} 6. Be3 {[%emt 0:00:38]} Bg7 {[%emt 0:00:07]} 7. f3 {[%emt 0:00:26]} O-O {[%emt 0:00:22]} 8. Qd2 {[%emt 0:00:11]} Nc6 {[%emt 0:00:23]} 9. Bc4 {[%emt 0:01:17]} Bd7 {[%emt 0:00:33]} 10. O-O-O {[%emt 0:00:22]} Ne5 {[%emt 0:00:47]} 11. Bb3 {[%emt 0:00:13]} Qa5 {[%emt 0:00:32]} 12. Kb1 {[%emt 0:00:27]} Rfc8 {[%emt 0:00:16]} 13. g4 {[%emt 0:00:55]} Rxc3 {[%emt 0:09:45] B79: Sicilian Dragon: Yugoslav Attack, 9 Bc4 Bd7 10 0-0-0 Qa5} (13... Nc4 14. Bxc4 Rxc4 15. Nb3 Qa6 16. Bd4 Be6 17. h4 Rac8 18. h5 b5 19. Rc1 b4 20. Ne2 R4c6 21. hxg6 fxg6 22. g5 Qa4 23. gxf6 {1-0 (35) Demchenko,A (2610)-Vocaturo,D (2534) St Petersburg 2012}) 14. Qxc3 {[%emt 0:00:49]} Qxc3 {[%emt 0:00:07]} 15. bxc3 {[%emt 0:00:08]} Nxf3 {[%emt 0:07:51]} 16. Nxf3 {[%emt 0:01:11]} Bxg4 {[%emt 0:06:01]} 17. Rdf1 {[%emt 0:22:54]} Nxe4 {[%emt 0:04:13]} 18. Bxf7+ {[%emt 0:17:35]} Kh8 {[%emt 0:00:25]} 19. Kb2 $146 {[%emt 0:09:27]} ({Predecessor:} 19. h3 Nxc3+ 20. Kb2 Bf5 21. Nd4 {1-0 (41) Pg,M-Yap,C (2054) Ho Chi Minh City 2003}) 19... Bh3 {[%emt 0:17:49]} 20. Bd4 {[%emt 0:19:17]} e5 {[%emt 0:11:04]} 21. Be3 {[%emt 0:01:50]} Bxf1 {[%emt 0:07:27]} 22. Rxf1 {[%emt 0:00:03]} Rc8 {[%emt 0:01:26]} 23. Ng5 {[%emt 0:05:14]} ({Don't do} 23. Bxa7 Bh6 $18) 23... Nxg5 {[%emt 0:06:00]} 24. Bxg5 {[%emt 0:00:02]} e4 {[%emt 0:05:05]} 25. Be6 {[%emt 0:04:57]} Rc5 {[%emt 0:03:47]} 26. Be3 {[%emt 0:01:20]} Rb5+ {[%emt 0:05:36]} 27. Bb3 {[%emt 0:02:13]} Rh5 {[%emt 0:01:35]} 28. Rf7 {[%emt 0:02:37]} Rxh2 {[%emt 0:04:36]} 29. Rxb7 {[%emt 0:01:01]} Be5 {[%emt 0:00:43]} 30. Be6 {[%emt 0:04:11]} (30. Bxa7 $142 Rh3 31. Bd4) 30... h5 {[%emt 0:02:35]} (30... a5 $142 31. Ra7 h5 32. Rxa5 Re2) 31. Rb4 {[%emt 0:03:08]} Re2 {[%emt 0:02:00]} 32. Rxe4 {[%emt 0:00:39]} g5 {[%emt 0:00:53]} 33. Bf5 {[%emt 0:00:51]} g4 {[%emt 0:00:39]} (33... Rxe3 $142 34. Rxe3 Kg7) 34. Bxa7 {[%emt 0:00:42]} Rg2 {[%emt 0:02:05]} 35. a4 {[%emt 0:00:39]} g3 {[%emt 0:00:44]} 36. a5 {[%emt 0:01:02]} Rd2 {[%emt 0:00:28]} 37. Bh3 {[%emt 0:00:40]} Rd5 {[%emt 0:00:21]} 38. Bb6 {[%emt 0:00:32]} Rb5+ {[%emt 0:00:34]} 39. Ka3 {[%emt 0:00:22]} Bxc3 {[%emt 0:00:25]} 40. Ka4 {[%emt 0:00:22]} Rb1 {[%emt 0:00:36]} 41. Rh4 {[%emt 0:00:23]} Kg7 {[%emt 0:00:21]} 42. Rxh5 {[%emt 0:00:46]} Kg6 {[%emt 0:00:24]} 43. Rd5 $18 {[%emt 0:00:16]} Kf7 {[%emt 0:00:47]} 44. Rd3 {[%emt 0:00:32]} Be1 {[%emt 0:00:29]} 45. c3 {[%emt 0:00:38]} Ke7 {[%emt 0:00:34]} 46. Re3+ {[%emt 0:00:22]} Kf6 {[%emt 0:00:14]} 47. Bd4+ {[%emt 0:00:20]} Kg5 {[%emt 0:00:17]} 48. Re2 {[%emt 0:00:35]} 1-0

[Event "HUN-chT Youth-Children 2018"]
[Site "Zalakaros"]
[Date "2018.07.27"]
[Round "3"]
[White "Krstulovic, Alex"]
[Black "Virag, Balint"]
[Result "0-1"]
[ECO "D94"]
[WhiteElo "2289"]
[BlackElo "2051"]
[Annotator "ChessBase"]
[PlyCount "106"]
[EventDate "2018.07.26"]
[EventType "team-tourn"]
[EventCountry "HUN"]
[SourceTitle "playchess.com"]
[Source "ChessBase"]
[SourceQuality "1"]
[TimeControl "5400+30"]

1. d4 {[%emt 0:00:00]} Nf6 {[%emt 0:00:42]} 2. c4 {[%emt 0:00:00]} g6 {[%emt 0:00:06]} 3. Nc3 {[%emt 0:00:00]} d5 {[%emt 0:00:05]} 4. Nf3 {[%emt 0:00:04]} Bg7 {[%emt 0:00:08]} 5. e3 {[%emt 0:00:04]} O-O {[%emt 0:00:18]} 6. cxd5 {[%emt 0:00:08]} Nxd5 {[%emt 0:00:08]} 7. Bc4 {[%emt 0:00:05]} Nb6 {[%emt 0:01:14]} 8. Bb3 {[%emt 0:00:03]} c5 {[%emt 0:00:29]} 9. O-O {[%emt 0:00:28]} cxd4 {[%emt 0:00:31]} 10. Nxd4 {[%emt 0:00:15]} a6 {[%emt 0:01:22]} 11. Qf3 {[%emt 0:03:13]} e5 {[%emt 0:03:32]} 12. Nde2 {[%emt 0:00:12]} Nc6 {[%emt 0:01:07]} 13. Rd1 {[%emt 0:09:04]} Qe7 {[%emt 0:02:36]} 14. e4 {[%emt 0:00:40]} Nd4 {[%emt 0:11:07]} 15. Nxd4 {[%emt 0:00:09]} exd4 {[%emt 0:00:01]} 16. Ne2 {[%emt 0:01:32]} Rd8 {[%emt 0:04:30]} 17. Bd2 {[%emt 0:01:02]} a5 {[%emt 0:03:50]} 18. h4 {[%emt 0:09:05]} h6 {[%emt 0:04:14]} 19. a4 {[%emt 0:00:09]} Be6 {[%emt 0:01:25]} 20. Bxe6 {[%emt 0:00:34]} Qxe6 {[%emt 0:00:15]} 21. Nf4 {[%emt 0:01:38]} Qf6 {[%emt 0:09:58]} 22. Qb3 {[%emt 0:03:42]} Rd6 {[%emt 0:03:29]} 23. h5 {[%emt 0:01:19]} g5 {[%emt 0:01:00]} 24. Nd3 {[%emt 0:00:23]} Qe7 {[%emt 0:03:42]} 25. Re1 {[%emt 0:03:00]} Rc6 {[%emt 0:03:15]} 26. Rac1 {[%emt 0:03:39]} Rxc1 {[%emt 0:01:14]} 27. Nxc1 {[%emt 0:00:44]} Qc5 {[%emt 0:05:42]} 28. Nd3 {[%emt 0:04:18]} Qc6 {[%emt 0:01:14]} 29. Rc1 {[%emt 0:06:00]} Qxe4 {[%emt 0:01:02]} 30. Qxb6 {[%emt 0:00:17]} Qxd3 {[%emt 0:00:18]} 31. Qxb7 {[%emt 0:00:05]} Rf8 {[%emt 0:03:36]} 32. Bxa5 {[%emt 0:03:59]} Qe2 {[%emt 0:00:11]} 33. b3 {[%emt 0:08:53]} d3 {[%emt 0:11:32]} 34. Qf3 {[%emt 0:14:38]} Qb2 {[%emt 0:10:08]} 35. Rd1 {[%emt 0:03:46]} Qxb3 {[%emt 0:00:21]} 36. Rxd3 {[%emt 0:00:05]} Qxa4 {[%emt 0:00:24]} 37. Bc3 {[%emt 0:00:04]} Re8 {[%emt 0:02:42]} 38. Bxg7 {[%emt 0:03:54]} Re1+ {[%emt 0:00:51]} 39. Kh2 {[%emt 0:00:05]} Kxg7 {[%emt 0:02:22]} 40. g4 {[%emt 0:04:50]} Re4 {[%emt 0:02:01]} 41. Kh3 {[%emt 0:00:42]} Rf4 {[%emt 0:00:29]} 42. Qe3 {[%emt 0:00:05]} Qa1 {[%emt 0:01:21]} 43. f3 {[%emt 0:00:56]} Ra4 {[%emt 0:00:55]} 44. Rd7 {[%emt 0:04:52]} Qh1+ {[%emt 0:01:37]} 45. Kg3 {[%emt 0:00:02]} Qh4+ {[%emt 0:00:32]} 46. Kg2 {[%emt 0:00:04]} Rxg4+ 47. fxg4 {[%emt 0:00:52]} Qxg4+ {[%emt 0:00:07]} 48. Kf2 {[%emt 0:01:55]} Qxd7 {[%emt 0:00:13]} 49. Qe5+ {[%emt 0:00:01]} f6 {[%emt 0:00:13]} 50. Qe4 {[%emt 0:00:03]} Qd2+ {[%emt 0:00:52]} 51. Kg3 {[%emt 0:00:17]} Qf4+ {[%emt 0:01:45]} 52. Qxf4 {[%emt 0:00:05]} gxf4+ {[%emt 0:00:02]} 53. Kxf4 {[%emt 0:00:07]} Kf8 {[%emt 0:00:05]} 0-1

[Event "HUN-chT Youth-Children 2018"]
[Site "Zalakaros"]
[Date "2018.07.27"]
[Round "3"]
[White "Polyik, Peter"]
[Black "Vodila, Martin Botond"]
[Result "1/2-1/2"]
[ECO "A48"]
[WhiteElo "2265"]
[BlackElo "2121"]
[Annotator "NA"]
[PlyCount "40"]
[EventDate "2018.07.26"]
[EventType "team-tourn"]
[EventCountry "HUN"]
[SourceTitle "playchess.com"]
[Source "ChessBase"]
[SourceQuality "1"]
[TimeControl "5400+30"]

1. d4 {[%emt 0:00:00]} Nf6 {[%emt 0:00:33]} 2. Nf3 {[%emt 0:00:06]} g6 {[%emt 0:00:07]} 3. c4 {[%emt 0:00:13]} Bg7 {[%emt 0:00:06]} 4. e3 {[%emt 0:00:20]} O-O {[%emt 0:00:13]} 5. Be2 {[%emt 0:00:10]} d6 {[%emt 0:02:00]} 6. Nc3 {[%emt 0:00:38]} Nc6 {[%emt 0:00:15]} 7. d5 {[%emt 0:01:01] E61: King's Indian: Early deviations for White, including Smyslov System} Ne5 {[%emt 0:00:30]} (7... Nb4 8. a3 Na6 9. Nd4 e5 10. dxe6 fxe6 11. O-O e5 12. Nb3 c6 13. e4 Nc7 14. f4 Ne6 {½-½ (59) Caruana,F (2784)-Carlsen,M (2843) Karlsruhe/Baden-Baden 2018}) 8. Nxe5 {[%emt 0:00:21]} dxe5 {[%emt 0:00:08]} 9. e4 {[%emt 0:00:23]} Ne8 {[%emt 0:09:45]} 10. h4 $146 {[%emt 0:24:06]} ({Predecessor:} 10. O-O f5 11. exf5 gxf5 12. f4 e4 13. Be3 e5 14. Qd2 Nd6 {1-0 (47) Roemer,U (2244)-Kiss,T (1996) Hungary 2014}) 10... h5 {[%emt 0:16:32]} 11. Be3 {[%emt 0:03:24]} b6 {[%emt 0:04:39]} 12. Qd2 {[%emt 0:05:20]} Nd6 {[%emt 0:01:12]} 13. O-O-O {[%emt 0:07:43]} a5 {[%emt 0:02:17]} 14. f3 {[%emt 0:05:37]} Ba6 {[%emt 0:01:47]} 15. b3 {[%emt 0:00:27]} a4 {[%emt 0:02:44]} 16. Kb2 {[%emt 0:01:56]} axb3 {[%emt 0:07:05]} 17. axb3 {[%emt 0:00:06]} f5 {[%emt 0:01:15]} 18. Ra1 {[%emt 0:08:13]} Bb7 {[%emt 0:02:51]} 19. g3 {[%emt 0:03:54]} (19. Rxa8 $16 Qxa8 20. Bd3) 19... Qd7 {[%emt 0:01:58]} 20. Rxa8 {[%emt 0:09:44]} Bxa8 $14 {[%emt 0:03:30]} 1/2-1/2

[Event "HUN-chT Youth-Children 2018"]
[Site "Zalakaros"]
[Date "2018.07.27"]
[Round "3"]
[White "Pribelszky, Bence"]
[Black "Kovacsy, Barnabas"]
[Result "1/2-1/2"]
[ECO "B48"]
[WhiteElo "2245"]
[BlackElo "2075"]
[Annotator "NA"]
[PlyCount "87"]
[EventDate "2018.07.26"]
[EventType "team-tourn"]
[EventCountry "HUN"]
[SourceTitle "playchess.com"]
[Source "ChessBase"]
[SourceQuality "1"]
[TimeControl "5400+30"]

{[%evp 34,77,12,32767,8,-7,15,0,-6,-8,32767,-41,-39,-27,-22,-3,0,-9,0,0,-8,0,0,0,8,0,22,14,29,23,14,30,62,32767,32767,32767,32767,0,0,0,0,0,0,0,0,0]} 1. e4 {[%emt 0:00:00]} c5 {[%emt 0:00:07]} 2. Nf3 {[%emt 0:00:00]} e6 {[%emt 0:00:09]} 3. d4 {[%emt 0:00:00]} cxd4 {[%emt 0:00:05]} 4. Nxd4 {[%emt 0:00:05]} Nc6 {[%emt 0:00:06]} 5. Nc3 {[%emt 0:00:19]} Qc7 {[%emt 0:00:12]} 6. Be3 {[%emt 0:00:38]} a6 {[%emt 0:00:23]} 7. Qf3 {[%emt 0:00:54] B48: Sicilian: Taimanov: 5 Nc3 Qc7 6 Be3 a6 without Be2} Bd6 {[%emt 0:00:39]} (7... Nf6 8. O-O-O Ne5 9. Qg3 b5 10. a3 Bb7 11. Bxb5 Rc8 12. Ba4 Nxe4 13. Nxe4 Bxe4 14. Bf4 Qc4 15. Bxe5 Qxa4 {1-0 (38) Vachier Lagrave,M (2789)-Anand,V (2776) Karlsruhe/Baden-Baden 2018}) 8. O-O-O {[%emt 0:17:26]} Be5 {[%emt 0:00:38]} 9. Nxc6 {[%emt 0:03:45]} bxc6 {[%emt 0:02:58]} 10. Bd4 {[%emt 0:03:27]} Nf6 {[%emt 0:02:05]} 11. Bxe5 {[%emt 0:05:25]} Qxe5 {[%emt 0:00:17]} 12. Qg3 {[%emt 0:01:07]} Qxg3 {[%emt 0:00:52]} 13. hxg3 {[%emt 0:00:22]} d5 {[%emt 0:02:53]} 14. exd5 {[%emt 0:04:49]} cxd5 {[%emt 0:00:47]} 15. f4 $146 {[%emt 0:07:03]} Bd7 {[%emt 0:06:37]} 16. Be2 {[%emt 0:10:04]} Ke7 {[%emt 0:05:22]} 17. g4 {[%emt 0:06:59]} h6 {[%emt 0:07:35]} 18. Bf3 {[%emt 0:03:14]} Rac8 {[%emt 0:26:35]} 19. g3 {[%emt 0:19:46]} Bb5 {[%emt 0:09:40]} 20. Nxb5 {[%emt 0:09:43]} axb5 {[%emt 0:00:19]} 21. Rd4 {[%emt 0:00:39]} Rhd8 {[%emt 0:03:17]} 22. c3 {[%emt 0:03:05]} Rc4 {[%emt 0:06:53]} 23. Rxc4 $1 {[%emt 0:01:38]} dxc4 {[%emt 0:05:20]} 24. Rd1 {[%emt 0:00:43]} Rxd1+ {[%emt 0:00:46]} 25. Kxd1 {[%emt 0:00:09]} Kd6 {[%emt 0:00:17]} 26. Kd2 {[%emt 0:00:57]} Nd7 {[%emt 0:03:54]} 27. b3 {[%emt 0:00:32]} cxb3 {[%emt 0:00:35]} 28. axb3 {[%emt 0:00:03]} e5 {[%emt 0:00:41]} 29. Be2 {[%emt 0:01:07]} Kc6 {[%emt 0:03:04]} 30. Ke3 {[%emt 0:00:25]} exf4+ {[%emt 0:03:39]} 31. gxf4 {[%emt 0:00:12]} Nf6 {[%emt 0:02:15]} 32. Kd4 {[%emt 0:00:37]} g6 {[%emt 0:00:49]} 33. Bf3+ {[%emt 0:00:37]} Kd6 {[%emt 0:00:03]} 34. c4 {[%emt 0:00:37]} bxc4 {[%emt 0:00:11]} 35. bxc4 {[%emt 0:00:30]} Nd7 {[%emt 0:00:17]} 36. Bd5 {[%emt 0:00:30]} f5 {[%emt 0:02:05]} 37. gxf5 {[%emt 0:00:29]} gxf5 {[%emt 0:00:25]} 38. Bf7 {[%emt 0:00:31]} Nc5 {[%emt 0:01:15]} 39. Bg8 $11 {[%emt 0:00:31]} Ne6+ {[%emt 0:02:27]} 40. Ke3 {[%emt 0:00:21]} Ng7 {[%emt 0:00:23]} 41. Kf3 {[%emt 0:00:32]} Kc5 {[%emt 0:00:34]} 42. Kg3 {[%emt 0:00:35]} Nh5+ {[%emt 0:00:12]} 43. Kf3 {[%emt 0:00:24]} Ng7 {[%emt 0:00:08]} 44. Bf7 {[%emt 0:00:36]} 1/2-1/2

[Event "HUN-chT Youth-Children 2018"]
[Site "Zalakaros"]
[Date "2018.07.27"]
[Round "3"]
[White "Juhasz, Agoston"]
[Black "Papp, Levente"]
[Result "1/2-1/2"]
[ECO "C04"]
[WhiteElo "2244"]
[BlackElo "2311"]
[Annotator "NA"]
[PlyCount "82"]
[EventDate "2018.07.26"]
[EventType "team-tourn"]
[EventCountry "HUN"]
[SourceTitle "playchess.com"]
[Source "ChessBase"]
[SourceQuality "1"]
[TimeControl "5400+30"]

{[%evp 23,82,34,32767,32767,39,-32,-12,-19,-20,-21,-14,-20,-8,-11,-10,-29,32767,32767,32767,32767,-24,-39,-29,-47,32767,-15,32767,-5,0,0,0,-7,0,-6,0,0,0,-30,32767,32767,32767,32767,32767,-39,32767,32767,32767,32767,16,24,33,20,35,24,31,27,25,25,23,22,94]} 1. e4 {[%emt 0:00:00]} e6 {[%emt 0:00:06]} 2. d4 {[%emt 0:00:00]} d5 {[%emt 0:00:06]} 3. Nd2 {[%emt 0:00:00]} Nc6 {[%emt 0:00:45]} 4. Ngf3 {[%emt 0:00:04]} Nf6 {[%emt 0:00:06]} 5. e5 {[%emt 0:00:12]} Nd7 {[%emt 0:00:05]} 6. Be2 {[%emt 0:00:29]} f6 {[%emt 0:00:23]} 7. exf6 {[%emt 0:00:17]} Qxf6 {[%emt 0:02:17]} 8. Nf1 {[%emt 0:06:18]} Bd6 {[%emt 0:21:54]} 9. Ne3 {[%emt 0:02:06]} O-O {[%emt 0:00:10]} 10. O-O {[%emt 0:00:48]} Qg6 {[%emt 0:03:59]} 11. c4 {[%emt 0:03:42] C04: French Tarrasch: 3...Nc6} Ne7 {[%emt 0:00:38]} (11... Nf6 12. Re1 Bd7 13. Qb3 a5 14. c5 Bf4 15. g3 Ne4 16. Ng2 Bxc1 17. Raxc1 Qf6 18. Rcd1 g5 {0-1 (27) Druska,J (2457)-Vovk,Y (2596) Slovakia 2016}) 12. g3 $146 {[%emt 0:14:15]} ({Better is Predecessor:} 12. c5 $16 Bf4 13. g3 (13. b4 c6 14. Nc2 Bc7 15. Bb2 Bf4 16. a4 a6 17. Ra3 Qf6 18. Ne3 Ng6 {1-0 (53) Calzetta Ruiz,M (2359)-Lipecki,A (2146) Caleta 2010})) 12... c6 {[%emt 0:08:54]} 13. Ng2 {[%emt 0:13:41]} e5 {[%emt 0:07:43]} 14. dxe5 {[%emt 0:07:37]} (14. Ngh4 $14 Qe8 15. c5) 14... Nxe5 {[%emt 0:00:06]} 15. Nxe5 {[%emt 0:03:08]} Bxe5 {[%emt 0:00:06]} 16. Bd3 {[%emt 0:04:20]} Qf6 {[%emt 0:02:17]} 17. Qc2 {[%emt 0:01:45]} Bf5 {[%emt 0:05:29]} 18. Bxf5 {[%emt 0:02:12]} Nxf5 {[%emt 0:01:48]} 19. cxd5 {[%emt 0:02:01]} Nd4 {[%emt 0:07:58]} 20. Qc4 {[%emt 0:06:53]} b5 {[%emt 0:09:29]} 21. Qd3 {[%emt 0:01:05]} Rad8 {[%emt 0:04:47]} 22. f4 {[%emt 0:05:26]} Bc7 {[%emt 0:00:05]} 23. Ne3 {[%emt 0:01:21]} Rfe8 {[%emt 0:05:26]} 24. Bd2 {[%emt 0:02:29]} Bb6 {[%emt 0:01:47]} 25. Rae1 {[%emt 0:01:35]} Nf5 {[%emt 0:03:05]} (25... c5 $15 26. Kg2 c4) 26. Kh1 {[%emt 0:03:26]} Bxe3 {[%emt 0:04:49]} 27. Bxe3 {[%emt 0:00:17]} Rxd5 {[%emt 0:01:12]} 28. Qb3 {[%emt 0:00:20]} Qf7 {[%emt 0:00:59]} 29. Bf2 {[%emt 0:02:52]} Red8 {[%emt 0:00:34]} 30. Rd1 {[%emt 0:02:10]} Rxd1 {[%emt 0:04:19]} 31. Rxd1 {[%emt 0:00:03]} Rxd1+ {[%emt 0:00:05]} 32. Qxd1 {[%emt 0:00:08]} Qxa2 {[%emt 0:00:06]} 33. Bc5 {[%emt 0:09:03]} Qd5+ {[%emt 0:03:35]} 34. Qxd5+ {[%emt 0:00:06]} cxd5 {[%emt 0:00:02]} 35. Bxa7 {[%emt 0:00:10]} Kf7 {[%emt 0:00:27]} 36. Kg2 {[%emt 0:00:45]} h5 {[%emt 0:00:43]} 37. Kf3 {[%emt 0:01:17]} Ke6 {[%emt 0:00:12]} 38. Bc5 {[%emt 0:01:50]} Nh6 {[%emt 0:01:10]} 39. h3 {[%emt 0:01:07]} g6 {[%emt 0:00:26]} 40. g4 {[%emt 0:01:10]} Nf7 {[%emt 0:00:09]} 41. Kg3 {[%emt 0:01:16]} Nh6 $16 {[%emt 0:01:01]} (41... Nd8 $11 {remains equal.}) 1/2-1/2

[Event "HUN-chT Youth-Children 2018"]
[Site "Zalakaros"]
[Date "2018.07.27"]
[Round "3"]
[White "Czupor, Attila"]
[Black "Margl, Roland"]
[Result "0-1"]
[ECO "C00"]
[WhiteElo "2239"]
[BlackElo "2183"]
[Annotator "NA"]
[PlyCount "128"]
[EventDate "2018.07.26"]
[EventType "team-tourn"]
[EventCountry "HUN"]
[SourceTitle "playchess.com"]
[Source "ChessBase"]
[SourceQuality "1"]
[TimeControl "5400+30"]

1. e4 {[%emt 0:00:00]} e6 {[%emt 0:00:05]} 2. d4 {[%emt 0:01:39]} d5 {[%emt 0:00:04]} 3. Bd3 {[%emt 0:02:43]} dxe4 {[%emt 0:00:07]} 4. Bxe4 {[%emt 0:00:06]} Nf6 {[%emt 0:00:04]} 5. Bd3 {[%emt 0:03:37]} c5 {[%emt 0:02:04]} 6. Nf3 {[%emt 0:03:49] C01: French: Exchange Variation} Nc6 {[%emt 0:01:45]} 7. dxc5 {[%emt 0:02:46]} Bxc5 {[%emt 0:00:22]} 8. O-O {[%emt 0:00:25]} Nb4 {[%emt 0:06:59]} (8... Qc7 9. Nc3 Bd7 10. a3 a6 11. Ne4 Ba7 {0-1 (62) Ruiz Sanchez,O (2455)-Gallego Alcaraz,A (2448) Santa Clara 2017}) 9. Bb5+ {[%emt 0:01:45]} Bd7 {[%emt 0:00:54]} 10. Bxd7+ {[%emt 0:01:17]} Qxd7 {[%emt 0:00:11]} 11. Qe2 {[%emt 0:01:04]} O-O {[%emt 0:00:43]} 12. a3 $146 {[%emt 0:00:57]} ({Predecessor:} 12. Bg5 Be7 13. Rd1 Qc7 {1-0 (42) Preuss,J (1640)-Kabisch,G (1705) GER email 2008}) 12... Nc6 {[%emt 0:02:14]} 13. b4 {[%emt 0:10:27]} Be7 {[%emt 0:01:39]} 14. Rd1 {[%emt 0:09:44]} Qc7 {[%emt 0:00:51]} 15. Bb2 {[%emt 0:01:14]} Rfd8 {[%emt 0:02:03]} 16. Nbd2 {[%emt 0:07:33]} Rac8 {[%emt 0:08:37]} 17. c4 {[%emt 0:04:13]} a5 {[%emt 0:01:40]} 18. b5 {[%emt 0:04:06]} Nb8 {[%emt 0:00:12]} 19. Be5 {[%emt 0:02:45]} Qb6 {[%emt 0:01:46]} 20. Nb3 {[%emt 0:05:27]} Nbd7 {[%emt 0:20:41]} (20... Rxd1+ $15 21. Rxd1 Nbd7) 21. Bc3 {[%emt 0:04:00]} Qc7 {[%emt 0:02:34]} 22. Nxa5 {[%emt 0:02:16]} Ra8 {[%emt 0:01:16] [#]} 23. Bb4 $1 {[%emt 0:01:32]} Nc5 {[%emt 0:10:39]} 24. Qe5 {[%emt 0:07:25]} Qb6 {[%emt 0:03:16]} 25. Rxd8+ {[%emt 0:13:32]} Rxd8 {[%emt 0:00:54]} 26. Qe2 {[%emt 0:04:10]} Ra8 {[%emt 0:01:44]} 27. Bxc5 {[%emt 0:00:17]} (27. Qe1 $1 $14) 27... Bxc5 {[%emt 0:00:15]} 28. Nb3 {[%emt 0:00:42]} Rxa3 {[%emt 0:00:20]} 29. Rxa3 {[%emt 0:00:13]} Bxa3 {[%emt 0:00:06]} 30. Qe3 {[%emt 0:01:43]} Qxe3 {[%emt 0:00:40]} 31. fxe3 {[%emt 0:00:01]} Ne4 {[%emt 0:01:02]} 32. Kf1 {[%emt 0:01:18]} Nd6 {[%emt 0:07:27]} 33. Nfd2 {[%emt 0:00:25]} b6 {[%emt 0:00:59]} 34. Ke2 {[%emt 0:00:26]} e5 {[%emt 0:01:48]} 35. Kd3 {[%emt 0:02:08]} (35. Nb1 $1 $14 Bb4 36. Kd3) 35... f5 {[%emt 0:01:32]} 36. e4 {[%emt 0:00:34]} g6 {[%emt 0:00:19]} 37. c5 {[%emt 0:01:23]} Bxc5 {[%emt 0:01:35]} 38. Nxc5 {[%emt 0:00:09]} bxc5 {[%emt 0:00:08]} 39. b6 {[%emt 0:00:15]} Kf7 {[%emt 0:01:15]} 40. Nc4 {[%emt 0:01:03]} fxe4+ {[%emt 0:01:59]} 41. Kc3 {[%emt 0:00:01]} Ke6 {[%emt 0:00:09]} 42. Na5 {[%emt 0:00:58]} Kd7 {[%emt 0:00:10]} 43. Kd2 {[%emt 0:00:25]} g5 {[%emt 0:05:37]} 44. g4 {[%emt 0:00:41]} h6 {[%emt 0:00:35]} 45. h3 {[%emt 0:00:32]} c4 {[%emt 0:00:30]} 46. Ke3 {[%emt 0:00:42]} (46. Kd1 {einziger Zug.} c3 47. Kc2) 46... c3 {[%emt 0:01:12]} 47. Ke2 {[%emt 0:00:06]} Nb5 {[%emt 0:01:34]} 48. Ke3 {[%emt 0:00:47]} Nd4 $19 {[%emt 0:01:07]} 49. Nc4 {[%emt 0:00:21]} c2 {[%emt 0:00:32]} 50. Kd2 {[%emt 0:00:08]} Kc6 {[%emt 0:00:47]} 51. Kc1 {[%emt 0:00:17]} e3 {[%emt 0:01:27]} 52. Nxe3 {[%emt 0:00:09]} Kxb6 {[%emt 0:00:02]} 53. Nc4+ {[%emt 0:00:05]} Kc5 {[%emt 0:00:07]} 54. Nxe5 {[%emt 0:00:06]} Kb4 {[%emt 0:00:10]} 55. Kb2 {[%emt 0:00:07]} Kc5 {[%emt 0:00:34]} 56. Nf7 {[%emt 0:02:47]} Kc4 {[%emt 0:00:12]} 57. Ne5+ {[%emt 0:00:30]} Kd5 {[%emt 0:00:06]} 58. Nd3 {[%emt 0:00:25]} Ke4 {[%emt 0:00:17]} 59. Kc3 {[%emt 0:00:09]} Ke3 {[%emt 0:00:22]} 60. Nc1 {[%emt 0:00:55]} Ne2+ {[%emt 0:00:22]} 61. Nxe2 {[%emt 0:00:26]} Kxe2 {[%emt 0:00:16]} 62. Kxc2 {[%emt 0:00:02]} Kf3 {[%emt 0:00:07]} 63. Kd3 {[%emt 0:00:05]} Kg3 {[%emt 0:00:04]} 64. Ke4 {[%emt 0:00:23]} Kxh3 {[%emt 0:00:07]} 0-1